[Event "Azerbaijan-ch 1st League 2025"]
[Site "Baku"]
[Date "2025.01.06"]
[Round "1.16"]
[White "Abdulkarimli, Eljan"]
[Black "Safarli, Ramzi"]
[Result "1-0"]
[Annotator "TA"]
[ECO "C02"]
[WhiteElo "2163"]
[BlackElo "1792"]
[PlyCount "133"]
[EventDate "2025.01.05"]
[EventType "swiss"]
[EventCountry "AZE"]
[SourceTitle "playchess.com"]
[Source "ChessBase"]
[SourceQuality "1"]
[TimeControl "40/5400+30:1800+30"]

{[%evp 9,133,6,8,10,17,6,33,32,29,18,28,9,65,57,49,47,196,220,233,242,252,237,248,183,219,195,234,181,241,204,214,208,207,206,211,198,200,181,218,162,159,174,180,131,206,215,278,177,208,192,216,168,177,156,267,238,240,206,206,165,178,145,157,139,214,143,225,246,182,0,213,217,273,122,189,159,170,174,345,210,395,247,361,357,322,263,360,279,313,104,184,134,276,201,289,124,369,358,479,390,575,476,831,780,855,830,1503,1402,1768,1615,1530,1188,1629,1598,1638,1617,29982,29983,29993,29994,29996,29997,29997,29996,29997,2487]} 1. e4 {[%emt 0:00:03]} c5 {[%emt 0:01:35]} 2. c3 {[%emt 0:00:49]} e6 {[%emt 0:01:15]} 3. d4 {[%emt 0:00:36]} cxd4 {[%emt 0:00:05]} 4. cxd4 {[%emt 0:00:07]} d5 {[%emt 0:00:02]} 5. e5 {[%emt 0:00:48]} Ne7 {[%emt 0:00:10]} 6. Na3 {[%emt 0:00:56]} Nf5 {[%emt 0:01:51]} 7. Nc2 {[%emt 0:00:48] Against Bb4+} Qb6 {[%emt 0:01:49]} 8. Bd3 {[%emt 0:02:09]} Nc6 {[%emt 0:01:54]} (8... Nxd4 $2 9. Nxd4 Bb4+ (9... Qb4+ $2 10. Qd2 $18) 10. Kf1 $18) 9. Nf3 {[%emt 0:00:33]} Bd7 {[%emt 0:03:09][%cal Rc6d4]} 10. O-O {[%emt 0:01:42][%cal Ob2b4]} Be7 {[%emt 0:02:19]} (10... Nb4 $11) 11. g4 $14 {[%emt 0:01:15]} Nh6 $1 {[%emt 0:01:34]} (11... Nfxd4 12. Nfxd4 Nxe5 (12... Nxd4 $2 13. Be3 $18) 13. Re1 $16) 12. h3 {[%emt 0:00:38]} O-O-O {[%emt 0:04:16]} (12... a5 $14) 13. b4 $18 {[%emt 0:08:49]} Kb8 {[%emt 0:10:52]} 14. Bd2 {[%emt 0:02:39]} Rc8 {[%emt 0:04:11]} 15. Qe1 {[%emt 0:03:36]} Bd8 {[%emt 0:06:03]} 16. Rb1 {[%emt 0:09:39]} Qc7 {[%emt 0:11:50]} 17. a4 {[%emt 0:07:52]} Ka8 {[%emt 0:07:04]} 18. Qe2 {[%emt 0:04:55]} Be7 {[%emt 0:03:49]} (18... f5 $142 19. exf6 Nf7 20. fxg7 (20. b5 Na5 $18) 20... Rg8) 19. Rfc1 {[%emt 0:02:24]} Qd8 {[%emt 0:01:27]} 20. Qe1 {[%emt 0:05:55]} Qf8 {[%emt 0:04:16]} 21. b5 {[%emt 0:04:04]} Nb8 {[%emt 0:00:11]} 22. Qe3 {[%emt 0:02:24]} Ng8 {[%emt 0:08:04]} 23. Kg2 {[%emt 0:06:32]} Qd8 {[%emt 0:02:05]} 24. Nb4 {[%emt 0:05:21]} Rxc1 {[%emt 0:00:59]} 25. Rxc1 {[%emt 0:00:22]} Qf8 {[%emt 0:00:34]} 26. Rb1 {[%emt 0:05:30]} (26. Na2 $18) 26... Qd8 {[%emt 0:01:06] [#]} (26... Bd8 $16 27. Bc2 h5) 27. a5 $1 {[%emt 0:04:32][%mdl 512]} Bc8 {[%emt 0:01:53]} (27... h5 28. g5) 28. Ng1 {[%emt 0:05:32]} Bf8 {[%emt 0:00:54]} 29. f4 {[%emt 0:01:31]} Ne7 {[%emt 0:01:22]} 30. Qe1 {[%emt 0:02:42]} Ng6 {[%emt 0:04:08]} 31. Qc1 {[%emt 0:05:50]} Qd7 {[%emt 0:06:18]} (31... Nh4+ $16 32. Kg3 h5) 32. Nf3 {[%emt 0:00:23]} Be7 {[%emt 0:00:16]} 33. Kg3 {[%emt 0:01:38]} Bd8 {[%emt 0:00:33]} 34. Ra1 {[%emt 0:01:35]} Ne7 {[%emt 0:02:16]} 35. Qb2 {[%emt 0:00:41] Black is weak on the dark squares} h6 {[%emt 0:01:04]} 36. Kg2 {[%emt 0:01:03] White has more active pieces.} Rg8 {[%emt 0:00:38]} (36... f5 $16 37. Qa2 fxg4) 37. Qc3 {[%emt 0:00:26]} Qc7 {[%emt 0:00:49]} (37... f5 $16 38. Qc5 fxg4) 38. Qb3 {[%emt 0:00:22]} Qd7 {[%emt 0:00:20]} 39. Qc3 {[%emt 0:00:12]} Qc7 $1 {[%emt 0:00:03] [#]} 40. Qa3 $1 {[%emt 0:00:00]} Qd7 {[%emt 0:00:00]} 41. Bf1 {[%emt 0:07:51]} (41. Na2 $18) 41... Ng6 {[%emt 0:05:21]} (41... Qe8 $16 {was necessary.} 42. b6 f5 43. bxa7 Nbc6) 42. Qb3 {[%emt 0:03:37]} Ne7 {[%emt 0:07:17]} 43. Nd3 {[%emt 0:01:44]} Ng6 $2 {[%emt 0:03:57]} (43... f5 44. Nc5 Qe8) 44. Kg3 {[%emt 0:01:36]} Be7 $2 {[%emt 0:00:23]} (44... f6 45. Rc1 Ne7) 45. Rc1 {[%emt 0:01:31]} Re8 {[%emt 0:02:15]} (45... Qd8 $142 46. Bb4 Bxb4) 46. Nc5 {[%emt 0:04:26]} Qd8 {[%emt 0:04:25]} 47. Bd3 {[%emt 0:02:58]} Nf8 {[%emt 0:02:33]} 48. Bb1 {[%emt 0:01:38]} Nfd7 {[%emt 0:01:37]} 49. Ne1 $2 {[%emt 0:01:22]} (49. Na4 $18) 49... Bh4+ {[%emt 0:05:20]} (49... Nxc5 $16 50. dxc5 g5) 50. Kg2 {[%emt 0:00:32]} (50. Kh2 $18) 50... Be7 {[%emt 0:00:54]} (50... Nxc5 $16 51. dxc5 (51. Rxc5 a6 $16) 51... Be7) 51. Ned3 {[%emt 0:01:19]} Nf8 {[%emt 0:00:14]} (51... Nxc5 $142 52. Nxc5 (52. dxc5 g5 $16) 52... g5) 52. Nb2 {[%emt 0:01:47]} (52. a6 $18 {and White stays clearly on top.}) 52... Nbd7 $2 {[%emt 0:04:55]} (52... g5 $16 53. Qc3 gxf4 54. Bxf4 Nfd7) 53. Nba4 {[%emt 0:00:44]} Kb8 {[%emt 0:02:00]} 54. Bd3 {[%emt 0:01:18] and b6 would now be decisive} Ka8 {[%emt 0:00:27]} (54... g5 $142 55. Nxd7+ Bxd7) 55. Rb1 {[%emt 0:02:08]} f6 {[%emt 0:02:10]} (55... f5 $142 56. gxf5 Bxc5) 56. b6 {[%emt 0:01:31]} Bxc5 {[%emt 0:01:02]} 57. dxc5 {[%emt 0:01:20]} Nb8 {[%emt 0:00:26] [#]} 58. a6 $1 {[%emt 0:02:41][%cal Ba5a6,Ba6b7][%mdl 544] White threatens bxa7 and mate.} Re7 {[%emt 0:00:24]} (58... d4 59. bxa7) 59. bxa7 {[%emt 0:00:35]} Kxa7 {[%emt 0:00:11]} 60. Nc3 {[%emt 0:02:23][%cal Ba4c3,Bc3b5,Bb5d6][%mdl 32]} Nc6 {[%emt 0:00:44]} 61. Nb5+ {[%emt 0:00:16]} Kb8 {[%emt 0:00:09]} 62. Nd6 {[%emt 0:00:30]} fxe5 {[%emt 0:00:26]} 63. axb7 {[%emt 0:00:19]} Bd7 {[%emt 0:00:58]} 64. Ra1 {[%emt 0:00:17]} Na7 {[%emt 0:00:35] [#]} 65. Rxa7 $1 {[%emt 0:00:23][%mdl 512]} Kxa7 {[%emt 0:00:08]} (65... Ba4 66. Ra8+) 66. Qa3+ {[%emt 0:00:16]} Kb8 {[%emt 0:00:09]} 67. Qa8+ {[%emt 0:00:15]} 1-0

[Event "Azerbaijan-ch 1st League 2025"]
[Site "Baku"]
[Date "2025.01.06"]
[Round "1.17"]
[White "Imranli, Kenan"]
[Black "Musayev, Eldar"]
[Result "0-1"]
[Annotator "TA"]
[ECO "B22"]
[WhiteElo "1758"]
[BlackElo "2163"]
[PlyCount "52"]
[EventDate "2025.01.05"]
[EventType "swiss"]
[EventCountry "AZE"]
[SourceTitle "playchess.com"]
[Source "ChessBase"]
[SourceQuality "1"]
[TimeControl "40/5400+30:1800+30"]

{[%evp 22,52,-5,0,0,-10,-9,0,-4,-37,-37,-53,-47,-119,-102,-103,-106,-133,-129,-224,-227,-231,-225,-239,-212,-370,-290,-347,-359,-355,-353,-1143,-1104]} 1. e4 {[%emt 0:00:15]} c5 {[%emt 0:00:43]} 2. c3 {[%emt 0:00:10]} Nf6 {[%emt 0:00:13]} 3. e5 {[%emt 0:00:17]} Nd5 {[%emt 0:00:06]} 4. d4 {[%emt 0:01:06]} cxd4 {[%emt 0:00:18]} 5. cxd4 {[%emt 0:00:18]} Nc6 {[%emt 0:00:40]} 6. Nf3 {[%emt 0:02:25]} d6 {[%emt 0:00:06]} 7. Bc4 {[%emt 0:01:20]} Nb6 {[%emt 0:00:16]} 8. Bb5 {[%emt 0:01:15]} dxe5 {[%emt 0:00:18]} 9. Nxe5 {[%emt 0:02:09]} Bd7 {[%emt 0:00:17]} 10. Bxc6 {[%emt 0:02:48]} Bxc6 {[%emt 0:00:43]} 11. Nxc6 {[%emt 0:01:42]} bxc6 {[%emt 0:00:02]} 12. O-O {[%emt 0:00:20]} e6 {[%emt 0:08:25]} 13. Bf4 {[%emt 0:00:54]} Bd6 {[%emt 0:02:43]} 14. Bxd6 {[%emt 0:03:36]} Qxd6 {[%emt 0:00:34] The position is equal.} 15. Qg4 {[%emt 0:00:08]} O-O {[%emt 0:01:34]} 16. Nc3 {[%emt 0:00:19]} Qb4 {[%emt 0:04:08]} 17. Rad1 {[%emt 0:07:07]} (17. Rab1 $15) 17... Qxb2 $17 {[%emt 0:12:38]} 18. Rd3 {[%emt 0:00:11]} Nd5 {[%emt 0:07:25]} 19. Rg3 {[%emt 0:05:49]} g6 {[%emt 0:00:10] Active counter play!} ({Worse is} 19... Nxc3 20. Qxg7#) 20. Na4 {[%emt 0:04:46]} (20. Nxd5 $17 cxd5 21. Qf4) 20... Qxa2 $19 {[%emt 0:06:23]} 21. Nc5 {[%emt 0:00:10]} Rfb8 {[%emt 0:00:58]} 22. Qe4 {[%emt 0:05:54] Repels Rb1} Qc4 {[%emt 0:13:41] [#] Threatens to win with ...Nc3.} 23. Qh4 $2 {[%emt 0:10:59]} (23. Qe5 {was necessary.}) 23... Rb4 {[%emt 0:08:03]} 24. Rh3 {[%emt 0:04:35]} h5 {[%emt 0:02:40]} (24... Qxd4 $2 {loses.} 25. Qxh7+ Kf8 26. Qh8+ Ke7 27. Qxa8 $18) 25. Nd3 {[%emt 0:00:28]} Rb3 {[%emt 0:02:49]} 26. Rc1 $2 {[%emt 0:07:28] [#]} (26. Ne5 Rxh3 27. gxh3) 26... Rxd3 $1 {[%emt 0:00:19] Black took control after the opening.   Weighted Error Value: White=0.61/Black=0.11 (very precise) .  Mistake:       	White=4     	---        Inaccurate:     	White=1     	---        OK:         	White=3     	Black=8      Best:        	---       	Black=2} 0-1

[Event "Azerbaijan-ch 1st League 2025"]
[Site "Baku"]
[Date "2025.01.06"]
[Round "1.18"]
[White "Rzayev, Chingiz"]
[Black "Kazimzade, Mahammad"]
[Result "1-0"]
[Annotator "TA"]
[ECO "C47"]
[WhiteElo "2153"]
[BlackElo "1743"]
[PlyCount "85"]
[EventDate "2025.01.05"]
[EventType "swiss"]
[EventCountry "AZE"]
[SourceTitle "playchess.com"]
[Source "ChessBase"]
[SourceQuality "1"]
[TimeControl "40/5400+30:1800+30"]

{[%evp 25,84,16,19,19,17,0,16,23,38,12,22,13,19,-2,14,0,30,19,45,31,57,43,68,27,87,91,97,105,262,166,172,180,6325,29953,6370,1633,1481,920,1016,1010,890,664,649,658,712,712,722,729,828,860,1931,1902,29986,29987,29983,29984,29990,29991,29997,29998,29999]} 1. e4 {[%emt 0:00:03]} e5 {[%emt 0:00:14]} 2. Nf3 {[%emt 0:00:07]} Nc6 {[%emt 0:00:18]} 3. Nc3 {[%emt 0:00:07]} Nf6 {[%emt 0:00:09]} 4. d4 {[%emt 0:00:04]} exd4 {[%emt 0:00:11]} 5. Nxd4 {[%emt 0:00:04]} Bb4 {[%emt 0:00:07]} 6. Nxc6 {[%emt 0:00:04]} bxc6 {[%emt 0:00:06]} 7. Bd3 {[%emt 0:00:03]} d5 {[%emt 0:00:15]} 8. exd5 {[%emt 0:00:05]} cxd5 {[%emt 0:00:16]} 9. O-O {[%emt 0:00:08]} O-O {[%emt 0:00:11]} 10. Bg5 {[%emt 0:00:02][%cal Bc1g5,Bg5h4,Bh4g3][%mdl 32]} c6 {[%emt 0:01:11]} 11. Qf3 {[%emt 0:00:05]} Be7 {[%emt 0:00:16]} 12. h3 {[%emt 0:00:04]} h6 {[%emt 0:00:40]} 13. Bh4 {[%emt 0:00:13]} Rb8 {[%emt 0:03:41]} 14. b3 {[%emt 0:00:24]} Be6 {[%emt 0:07:38]} 15. Bg3 {[%emt 0:03:25]} Rb7 {[%emt 0:02:20]} 16. Ne2 {[%emt 0:00:41]} Nh7 {[%emt 0:07:02]} 17. Nd4 {[%emt 0:06:02]} Ng5 {[%emt 0:03:22]} 18. Qh5 {[%emt 0:01:26][%cal Oh3h4]} Bd7 {[%emt 0:04:23]} 19. Rae1 {[%emt 0:10:24][%cal Ba1e1,Be1e5,Be5g5][%mdl 32]} Bf6 {[%emt 0:08:08]} 20. Be5 {[%emt 0:02:07]} Bxe5 {[%emt 0:03:18]} 21. Rxe5 {[%emt 0:01:39]} Qf6 {[%emt 0:03:07]} 22. f4 {[%emt 0:04:36]} Ne6 {[%emt 0:06:34]} 23. Nxe6 {[%emt 0:01:46]} Bxe6 {[%emt 0:00:10]} 24. g4 {[%emt 0:00:24] White is more active.} (24. Qe2 {simplifies} Bd7 25. Qe3 Qd8 26. Re1) 24... Rfb8 {[%emt 0:04:56]} (24... Re8 $11) 25. g5 $16 {[%emt 0:04:09]} hxg5 {[%emt 0:01:00]} 26. Rxg5 {[%emt 0:00:06]} Qd4+ $2 {[%emt 0:05:34]} (26... Re8 $16) 27. Kh1 {[%emt 0:00:45]} f5 {[%emt 0:02:47]} 28. Qg6 {[%emt 0:01:38]} ({Not} 28. Bxf5 Bxf5 29. Rxf5 Qe4+ 30. Kg1 Re8 $11) 28... Rf8 $2 {[%emt 0:02:18]} (28... Re7 29. Re1 (29. Bxf5 Bxf5 30. Rxf5 Qe4+ 31. Kh2 Qxc2+ 32. Kg1 Qc5+ 33. Kh1 Qe3 $15) 29... Rbe8 (29... Bf7 30. Qxg7+ Qxg7 31. Rxg7+ Kf8 32. Reg1 $18)) 29. Qxe6+ $18 {[%emt 0:00:10]} Rbf7 {[%emt 0:01:41]} 30. Bxf5 {[%emt 0:00:41][%cal Og5h5]} Qf6 {[%emt 0:00:53]} 31. Bg4 {[%emt 0:00:24]} Kh8 {[%emt 0:02:48]} 32. Rh5+ {[%emt 0:00:10]} Kg8 {[%emt 0:00:07]} 33. Qxf6 {[%emt 0:01:03]} Rxf6 {[%emt 0:00:08]} 34. Kg2 {[%emt 0:00:03]} Re8 {[%emt 0:00:37]} 35. Re5 {[%emt 0:00:06]} Rb8 {[%emt 0:00:33]} 36. Kg3 {[%emt 0:00:21]} Rb5 {[%emt 0:00:17]} 37. Rfe1 {[%emt 0:00:39]} Rc5 {[%emt 0:00:37] [#]} 38. c4 $1 {[%emt 0:00:09] Threatens to win with Re8+.} a5 {[%emt 0:00:33][%cal Ba7a5,Ba5a4][%mdl 32]} (38... Ra5 39. Re8+) 39. Re8+ {[%emt 0:00:10]} Kh7 {[%emt 0:00:11]} 40. R1e5 {[%emt 0:00:00]} a4 {[%emt 0:00:00]} 41. Bf5+ {[%emt 0:00:06]} g6 {[%emt 0:00:34]} 42. R5e7+ {[%emt 0:00:04]} Kh6 {[%emt 0:00:21]} 43. Rh8# {[%emt 0:00:04]} 1-0

[Event "Azerbaijan-ch 1st League 2025"]
[Site "Baku"]
[Date "2025.01.07"]
[Round "2.1"]
[White "Ibrahimli, Murad"]
[Black "Davudov, Tunar"]
[Result "1/2-1/2"]
[Annotator "TA"]
[ECO "E52"]
[WhiteElo "2415"]
[BlackElo "2225"]
[PlyCount "143"]
[EventDate "2025.01.05"]
[EventType "swiss"]
[EventCountry "AZE"]
[SourceTitle "playchess.com"]
[Source "ChessBase"]
[SourceQuality "1"]
[TimeControl "40/5400+30:1800+30"]

{[%evp 15,143,0,2,-12,-1,-14,-16,-32,-20,-29,-33,-28,-12,-37,-17,-18,0,0,72,58,69,39,67,0,23,7,22,8,20,21,20,31,35,26,31,23,38,27,31,0,0,0,16,0,0,-76,95,95,134,144,150,125,216,211,201,105,106,111,106,106,102,110,110,102,102,102,102,102,102,102,102,102,101,94,135,128,141,112,151,147,176,173,164,110,110,110,118,104,90,81,395,393,347,328,980,991,714,285,238,8,8,8,8,-3,-3,-6,-6,-8,-8,-8,-8,-8,-8,-8,-8,-8,-8,-8,-8,-8,-8,-8,-8,-8,-8,-8,-8,-8,-8,-8]} 1. d4 {[%emt 0:02:13]} Nf6 {[%emt 0:00:09]} 2. c4 {[%emt 0:00:14]} e6 {[%emt 0:00:14]} 3. Nc3 {[%emt 0:00:58]} Bb4 {[%emt 0:00:41]} 4. e3 {[%emt 0:01:15]} O-O {[%emt 0:00:38]} 5. Bd3 {[%emt 0:00:28]} d5 {[%emt 0:02:29]} 6. Nf3 {[%emt 0:00:26]} b6 {[%emt 0:01:00]} 7. cxd5 {[%emt 0:01:12]} exd5 {[%emt 0:00:17]} 8. Bd2 {[%emt 0:00:28]} Bb7 {[%emt 0:03:22]} 9. Qc2 {[%emt 0:15:42]} a6 {[%emt 0:03:47]} 10. Ne2 {[%emt 0:12:03]} Bd6 {[%emt 0:13:47]} 11. Ng3 {[%emt 0:00:06]} Re8 {[%emt 0:01:47]} 12. Rc1 {[%emt 0:04:14]} c5 {[%emt 0:04:25]} 13. dxc5 {[%emt 0:00:38]} bxc5 {[%emt 0:00:30]} 14. O-O {[%emt 0:00:17]} Nbd7 {[%emt 0:08:22]} 15. Bc3 {[%emt 0:03:48]} Rc8 {[%emt 0:14:51][%cal Od5d4]} 16. Qa4 {[%emt 0:05:40]} Ne5 {[%emt 0:08:46]} (16... g6 $11) 17. Bxe5 {[%emt 0:14:27]} (17. Bxa6 Nxf3+ 18. gxf3 Ra8 $19) 17... Bxe5 {[%emt 0:00:11]} 18. Nxe5 {[%emt 0:00:04]} (18. Bxa6 $2 {is the wrong capture.} Ra8 $19 (18... Bxa6 19. Qxa6 Bxb2 20. Rc2 $19) (18... Bxa6 19. Qxa6 Bxb2 20. Rc2 $17)) 18... Rxe5 {[%emt 0:00:08]} 19. Qf4 {[%emt 0:11:44] White is much more active.} Qe7 {[%emt 0:15:00]} 20. b3 {[%emt 0:15:38]} g6 {[%emt 0:02:30]} 21. Rc2 {[%emt 0:02:31]} Re6 {[%emt 0:07:21]} 22. Rfc1 {[%emt 0:00:12]} Nd7 {[%emt 0:02:00]} 23. Bf1 {[%emt 0:03:24]} Ne5 {[%emt 0:02:43]} 24. Qa4 {[%emt 0:00:42]} Rec6 {[%emt 0:03:56]} 25. Qa3 {[%emt 0:00:27]} Qc7 {[%emt 0:00:30]} 26. Qb2 {[%emt 0:01:14]} h5 {[%emt 0:00:38][%cal Bh7h5,Bh5h4][%mdl 32]} 27. h3 {[%emt 0:00:07]} h4 {[%emt 0:00:11]} 28. Nh1 {[%emt 0:00:57]} c4 {[%emt 0:01:00]} 29. bxc4 {[%emt 0:00:45]} dxc4 {[%emt 0:00:10]} 30. Qd4 {[%emt 0:00:03]} (30. f3 $11 {remains equal.}) 30... Rc5 $2 {[%emt 0:01:41]} (30... Qe7 $1 $17 {keeps the pressure on.} 31. f3 Rd8) 31. Qxh4 $16 {[%emt 0:00:12]} c3 {[%emt 0:01:40]} 32. Ng3 {[%emt 0:00:06]} Qc6 {[%emt 0:00:34]} 33. Rd1 {[%emt 0:01:47]} Rd5 {[%emt 0:00:48]} (33... Qb6 $16 {keeps fighting.} 34. Ne4 Bxe4 35. Qxe4 Qe6) 34. Rxd5 $18 {[%emt 0:01:03]} Qxd5 {[%emt 0:00:04]} 35. Qd4 {[%emt 0:00:27]} (35. Qe7 $18 {Hoping for e4.} Ba8 36. Qa3 (36. Bxa6 $2 Qxg2#)) 35... Qxd4 $16 {[%emt 0:01:16]} 36. exd4 {[%emt 0:00:02]} Nc6 {[%emt 0:00:21]} ({Avoid the trap} 36... Nd7 $2 37. Ne2 $18) 37. Rxc3 {[%emt 0:01:33]} Nxd4 {[%emt 0:00:05]} 38. Rxc8+ {[%emt 0:00:07]} Bxc8 {[%emt 0:00:03][%mdl 4096] Endgame. KBN-KBN} 39. Ne4 {[%emt 0:00:12]} Be6 {[%emt 0:01:20]} 40. a4 {[%emt 0:00:00]} a5 {[%emt 0:00:00]} 41. f4 {[%emt 0:02:45]} Kf8 {[%emt 0:06:28]} 42. Kf2 {[%emt 0:00:05]} Ke7 {[%emt 0:00:22]} 43. Bd3 {[%emt 0:10:02]} Bd5 {[%emt 0:12:40]} 44. Nc3 {[%emt 0:00:42]} Bc6 {[%emt 0:01:48]} 45. Ke3 {[%emt 0:00:43]} Ne6 {[%emt 0:01:08]} 46. Be4 {[%emt 0:01:38]} Be8 {[%emt 0:01:15]} 47. g4 $1 {[%emt 0:00:59]} Nc5 {[%emt 0:02:58]} 48. Bc2 {[%emt 0:00:23]} Bd7 {[%emt 0:00:40]} 49. f5 {[%emt 0:11:07]} ({White should play} 49. Nd5+ $1 $18 Kd6 50. Nb6) 49... gxf5 {[%emt 0:04:31]} 50. gxf5 {[%emt 0:00:05] h4 is the strong threat.} Kf6 {[%emt 0:00:22][%cal Of6e5] [#]} 51. Kf4 $1 {[%emt 0:00:44] Black must now prevent h4.} Bc6 {[%emt 0:00:58]} 52. h4 {[%emt 0:00:07]} Be8 $2 {[%emt 0:01:16][%mdl 8192]} (52... Nd7 $16) 53. h5 $18 {[%emt 0:01:21]} Kg7 {[%emt 0:01:39]} 54. Ke5 {[%emt 0:00:48] aiming for Kd6.} Nd7+ $2 {[%emt 0:00:59]} (54... f6+ 55. Kd6 Na6) 55. Kd6 {[%emt 0:00:06]} Nf6 {[%emt 0:00:36]} 56. Bd1 $2 {[%emt 0:01:11]} (56. Ke7 {[%cal Oh5h6] h6+! would now be deadly.} Bxa4 57. Bxa4 (57. Nxa4 Ng8+ 58. Kd8 Nf6 $18) 57... Ng8+ 58. Kd6) 56... Bd7 {[%emt 0:00:17] [#]} 57. h6+ $2 {[%emt 0:03:07]} Kxh6 $11 {[%emt 0:00:22] The position is equal.} 58. Ke7 {[%emt 0:00:18]} Kg5 {[%emt 0:00:23]} 59. Kxf7 {[%emt 0:00:39]} Kxf5 {[%emt 0:00:21]} 60. Ke7 {[%emt 0:01:40]} Ke5 {[%emt 0:00:26]} 61. Kd8 {[%emt 0:00:13]} Kd6 {[%emt 0:01:34]} 62. Be2 {[%emt 0:00:38]} Bc6 {[%emt 0:00:26]} 63. Bb5 {[%emt 0:02:01]} Bb7 {[%emt 0:00:18]} 64. Ne2 {[%emt 0:00:36]} Kc5 {[%emt 0:00:27]} 65. Nf4 {[%emt 0:00:50]} Nd5 {[%emt 0:00:52]} 66. Ne6+ {[%emt 0:01:26]} Kb4 {[%emt 0:00:25]} 67. Nd4 {[%emt 0:00:07]} Nc3 {[%emt 0:00:25]} 68. Kc7 {[%emt 0:00:06]} Be4 {[%emt 0:00:23]} 69. Bc6 {[%emt 0:00:12]} Bd3 {[%emt 0:00:36]} 70. Kb6 {[%emt 0:00:24]} Nxa4+ {[%emt 0:00:34]} 71. Bxa4 {[%emt 0:00:05]} Kxa4 {[%emt 0:00:03]} 72. Nc6 {[%emt 0:00:05] Black defended with fortune.   Weighted Error Value: White=0.26 (precise) /Black=0.30.  Loses game:     	---       	Black=1      Mistake:       	White=3     	Black=4      Inaccurate:     	White=3     	Black=4      OK:         	White=26    	Black=18     Best:        	White=3     	Black=5      Strong:       	White=1     	---} 1/2-1/2